bitfinex/quotes_ETHUSD_20250129
["timestamp","ask_amount","ask_price","bid_price","bid_amount"]
[1738118831424,4.744914,3115.2,3114.7,0.618]
[1738118831584,9.60332807,3115.2,3114.8,0.07482338]
[1738118832021,9.60332807,3115.2,3114.7,0.618]
[1738118832199,9.60332807,3115.2,3114.9,0.07482338]
[1738118832398,9.60332807,3115.2,3114.7,0.618]
[1738118832597,9.60332807,3115.2,3115.0,0.07482338]
[1738118832808,9.60332807,3115.2,3114.7,0.618]
[1738118833022,9.60332807,3115.2,3115.1,0.07482338]
[1738118833223,9.60332807,3115.2,3114.7,0.618]
[1738118833396,9.60332807,3115.2,3115.1,0.07482338]
[1738118833584,9.60332807,3115.2,3114.7,0.618]
[1738118833785,9.60332807,3115.2,3115.1,0.07482338]
[1738118833982,9.60332807,3115.2,3114.7,0.618]
[1738118834186,9.60332807,3115.2,3115.1,0.07482338]
[1738118834398,9.60332807,3115.2,3114.7,0.618]
[1738118834686,9.60332807,3115.2,3114.5,1.26783827]
[1738118834898,3.21029,3115.0,3114.6,0.07485888]
[1738118835123,9.60332807,3115.2,3114.6,0.07485888]
[1738118835319,12.81346807,3115.2,3114.6,0.07487308]
[1738118835620,3.21028,3115.0,3114.6,0.07487308]
[1738118837123,3.97188,3114.7,3114.6,0.07487308]
[1738118837310,8.84671103,3114.7,3114.0,3.21122]
[1738118837483,3.21082,3114.5,3114.1,0.07319222]
[1738118837941,3.21082,3114.5,3114.2,0.6334385]
[1738118838293,0.01641696,3114.4,3114.2,0.6334385]
[1738118838606,0.01641696,3114.4,3114.3,0.07319222]
[1738118839003,0.01641696,3114.4,3114.0,3.213]
[1738118839232,0.01641696,3114.4,3114.3,0.07319222]
[1738118839233,3.22730696,3114.4,3114.3,0.07319222]
[1738118839445,3.211,3114.3,3114.0,3.84701687]
[1738118839650,4.0192,3114.3,3114.0,3.84701687]
[1738118840154,0.01641696,3114.2,3114.0,3.84701687]
[1738118840954,3.22756696,3114.2,3114.0,3.213]
[1738118841151,3.2112,3114.1,3114.0,3.213]
[1738118841375,3.97385,3113.9,3113.6,0.62785226]
[1738118841517,3.21152,3113.8,3113.4,6.375]
[1738118841723,3.22793696,3113.8,3113.4,6.375]
[1738118841976,3.21164,3113.7,3113.4,6.375]
[1738118842137,0.01641696,3113.8,3113.4,6.375]
[1738118842318,7.18534,3113.9,3113.4,7.00638747]
[1738118842516,3.21152,3113.8,3113.4,7.00638747]
[1738118842714,3.22793696,3113.8,3113.4,7.00638747]
[1738118842935,3.22793696,3113.8,3113.5,0.07361835]
[1738118843134,3.21152,3113.8,3113.5,0.07361835]
[1738118843892,1.55340367,3113.9,3113.5,0.07361835]
[1738118844055,3.2113,3114.0,3113.5,0.07361835]
[1738118844251,3.2113,3114.0,3113.5,3.28541835]
[1738118845169,1.5284967,3114.1,3113.5,3.28541835]
[1738118845170,3.21171,3113.6,3113.5,0.07361835]
[1738118845373,11.85162407,3113.6,3113.5,0.07361835]
[1738118845550,0.7512,3112.8,3111.9,4.33433415]
[1738118845752,3.21306,3112.3,3112.0,0.64597822]
[1738118845972,0.01641696,3112.3,3112.0,3.86097822]
[1738118846183,0.7512,3112.8,3112.0,3.86097822]
[1738118846184,3.21277,3112.6,3112.0,3.86097822]
[1738118846485,3.21267,3112.7,3112.1,3.21818]
[1738118846775,3.21255,3112.8,3112.2,0.55]
[1738118847549,3.0,3112.9,3112.2,0.55]
[1738118847775,3.21233,3113.0,3112.4,0.618]
[1738118847960,3.21233,3113.0,3112.4,3.833]
[1738118848167,8.07054407,3113.2,3112.5,0.55]
[1738118848474,3.21233,3113.1,3112.5,0.55]
[1738118848647,3.21233,3113.1,3112.5,3.76283]
[1738118850590,3.21272,3112.7,3112.1,0.623]
[1738118850744,3.21272,3112.7,3112.2,3.215]
[1738118851250,0.01641696,3112.6,3112.2,3.215]
[1738118851456,3.21272,3112.7,3112.2,3.215]
[1738118853240,3.21272,3112.7,3112.3,0.06847438]
[1738118853644,3.21272,3112.7,3112.2,3.215]
[1738118853845,3.21272,3112.7,3112.4,0.0684886]
[1738118854052,3.21272,3112.7,3112.2,3.215]
[1738118854559,3.21272,3112.7,3112.3,0.0684886]
[1738118855069,3.21249,3112.9,3112.3,3.76305]
[1738118855271,3.21249,3112.9,3112.4,0.06848149]
[1738118855974,3.21249,3112.9,3112.5,0.55]
[1738118856142,4.01930441,3113.1,3112.7,0.618]
[1738118856645,3.21242,3113.0,3112.8,0.06907862]
[1738118857143,3.21242,3113.0,3112.9,0.06907862]
[1738118857392,3.21242,3113.0,3112.7,0.618]
[1738118857676,3.21242,3113.0,3112.9,0.06907862]
[1738118857854,3.21242,3113.0,3112.7,0.618]
[1738118858069,3.21242,3113.0,3112.9,0.06907862]
[1738118858258,3.21242,3113.0,3112.7,0.618]
[1738118858580,3.21209,3113.3,3112.8,0.55]
[1738118858784,3.21209,3113.3,3112.8,0.61907862]
[1738118859003,0.7696,3113.8,3112.8,0.06907862]
[1738118859145,3.0,3114.0,3112.8,0.06907862]
[1738118859146,3.21229,3113.1,3112.8,0.06907862]
[1738118859353,3.93169,3113.1,3112.7,3.214]
[1738118859566,3.21229,3113.1,3112.9,0.06907862]
[1738118859896,3.21229,3113.1,3112.7,3.214]
[1738118860196,4.85841407,3113.5,3112.8,0.55]
[1738118860497,4.85841407,3113.5,3112.8,0.61887241]
[1738118860648,4.85841407,3113.5,3112.8,3.83139241]
[1738118860846,4.85841407,3113.5,3112.8,4.9821544]
[1738118861665,4.87483103,3113.5,3112.8,0.61887241]
[1738118861967,3.21193,3113.4,3112.8,0.06887241]
[1738118862170,0.84621696,3113.3,3112.8,0.06887241]
[1738118862356,0.84621696,3113.3,3112.6,0.618]
[1738118862762,0.84621696,3113.3,3112.7,0.06875865]
[1738118863293,4.05825696,3113.3,3112.7,0.06875865]
[1738118863583,5.27111706,3113.3,3112.7,0.06875865]
[1738118863745,3.21215,3113.2,3112.7,0.06875865]
[1738118863952,3.21244,3112.9,3112.7,0.06875865]
[1738118864271,0.78631696,3112.8,3112.7,0.06875865]
[1738118864452,0.78631696,3112.8,3112.2,3.765]
[1738118864651,4.71997266,3112.8,3112.7,0.0665293]
[1738118864884,4.71997266,3112.8,3112.2,3.765]
[1738118865187,3.99885696,3112.8,3112.2,3.765]
[1738118865481,3.99885696,3112.8,3112.3,0.0665293]
[1738118865875,3.2124,3113.0,3112.4,0.55]
[1738118866181,3.2124,3113.0,3112.5,0.55]
[1738118866387,0.01641696,3112.9,3112.5,0.55]
[1738118866681,3.22886696,3112.9,3112.5,0.55]
[1738118866886,3.22886696,3112.9,3112.6,0.06666442]
[1738118867456,3.21245,3112.9,3112.6,0.06666442]
[1738118870290,3.21264,3112.7,3112.6,0.06666442]
[1738118870665,3.21264,3112.7,3112.2,0.55]
[1738118870870,3.21264,3112.7,3112.6,0.06666442]
[1738118871071,3.21264,3112.7,3112.2,3.76311]
[1738118871270,3.21264,3112.7,3112.6,0.06666442]
[1738118871483,3.21264,3112.7,3112.2,3.76311]
[1738118871660,3.21264,3112.7,3112.6,0.06656486]
[1738118871861,3.21264,3112.7,3112.2,3.76311]
[1738118872083,3.21264,3112.7,3112.6,0.06656486]
[1738118872573,3.21264,3112.7,3112.2,0.55]
[1738118872886,3.21264,3112.7,3112.6,0.06656486]
[1738118873088,3.21264,3112.7,3112.2,0.55]
[1738118873266,3.21264,3112.7,3112.6,0.06656486]
[1738118873472,3.21297,3112.4,3112.1,0.65805728]
[1738118873796,3.21316,3112.2,3112.1,0.65805728]
[1738118874369,3.21316,3112.2,3112.1,0.005]
[1738118874576,6.426,3112.4,3112.1,0.005]
[1738118875073,3.21297,3112.4,3112.1,0.005]
[1738118875568,6.426,3112.4,3112.1,0.005]
[1738118875898,3.21307,3112.3,3112.1,0.005]
[1738118876054,3.21297,3112.4,3112.1,0.005]
[1738118876261,3.21277,3112.6,3112.2,0.618]
[1738118876863,6.4256,3112.6,3112.2,0.618]
[1738118877360,3.21277,3112.6,3112.2,0.618]
[1738118879068,4.85841407,3112.7,3112.4,3.21293]
[1738118879267,3.2123,3113.1,3112.6,0.618]
[1738118879679,3.2123,3113.1,3112.7,0.06711958]
[1738118880300,3.21236,3113.0,3112.7,0.06711958]
[1738118880599,3.21246,3112.9,3112.7,0.06711958]
[1738118881980,3.21246,3112.9,3112.8,0.30077403]
[1738118882468,4.67559766,3112.9,3112.8,0.36768025]
[1738118882903,4.67559766,3112.9,3112.8,0.30077403]
[1738118883606,4.6591807,3112.9,3112.8,0.30077403]
[1738118883805,3.21246,3112.9,3112.8,0.30077403]
[1738118883996,3.21246,3112.9,3112.8,0.36768025]
[1738118885469,6.42462,3113.1,3112.8,0.36768025]
[1738118886204,3.22877696,3113.0,3112.8,0.36768025]
[1738118886603,3.21243,3112.9,3112.8,0.36768025]
[1738118887278,3.9352937,3112.9,3112.8,0.36768025]
[1738118887479,3.9352937,3112.9,3112.8,0.30077403]
[1738118887697,3.21243,3112.9,3112.8,0.30077403]
[1738118888220,3.21243,3112.9,3112.8,0.36745977]
[1738118890616,3.21229,3113.1,3112.8,0.36745977]
[1738118891423,14.28216407,3113.5,3112.9,0.55]
[1738118891603,3.21194,3113.4,3113.0,0.618]
[1738118891799,3.21194,3113.4,3113.0,0.68457907]
[1738118892599,6.42374,3113.5,3113.1,0.30077403]
[1738118892804,3.21193,3113.4,3113.1,0.30077403]
[1738118893011,3.21184,3113.5,3113.2,0.0663231]
[1738118893198,3.21202,3113.3,3113.2,0.0663231]
[1738118893416,6.42375,3113.5,3113.2,0.0663231]
[1738118894291,3.21192,3113.4,3113.3,0.30077403]
[1738118894723,3.21184,3113.5,3113.3,0.30077403]
[1738118894921,3.21165,3113.7,3113.3,0.36709713]
[1738118895442,3.21124,3114.1,3113.5,0.618]
[1738118895647,3.21147,3113.9,3113.5,0.618]
[1738118895951,3.98881,3113.7,3113.6,0.0662449]
[1738118896167,6.98881,3113.7,3113.4,0.30077403]
[1738118896441,6.98901,3113.5,3113.4,0.30077403]
[1738118896621,6.98901,3113.5,3113.4,4.03e-06]
[1738118897810,3.0,3113.4,3112.1,0.005]
[1738118898010,3.21298,3112.4,3112.1,0.005]
[1738118898210,3.22946696,3112.3,3112.2,0.0615727]
[1738118899024,3.21305,3112.3,3112.2,0.0615727]
[1738118899749,4.04138,3112.6,3112.2,0.0615727]
[1738118900053,3.21299,3112.4,3112.2,0.0615727]
[1738118900626,3.21278,3112.6,3112.2,0.0615727]
[1738118902049,3.22932696,3112.5,3112.2,0.0615727]
[1738118902352,3.21291,3112.5,3112.2,0.0615727]
[1738118902537,3.22932696,3112.5,3112.2,0.0615727]
[1738118903622,3.21258,3112.8,3112.2,0.0615727]
[1738118903826,3.21287,3112.5,3112.2,0.0615727]
[1738118904122,3.97457,3112.4,3112.2,0.0615727]
[1738118904321,3.22946696,3112.3,3112.2,0.0615727]
[1738118905729,3.21305,3112.3,3112.2,0.0615727]
[1738118906247,3.22946696,3112.3,3112.2,0.0615727]
[1738118906452,3.94987066,3112.3,3112.2,0.0615727]
[1738118906922,3.9334537,3112.3,3112.2,0.0615727]
[1738118907128,3.21288,3112.5,3112.2,0.0615727]
[1738118908451,3.21301,3112.4,3112.2,0.0615727]
[1738118908954,3.22942696,3112.4,3112.2,0.0615727]
[1738118909519,3.21301,3112.4,3112.2,0.0615727]
[1738118909916,3.21283,3112.6,3112.3,0.618]
[1738118910122,3.21283,3112.6,3112.4,0.06079088]
[1738118910747,3.21265,3112.7,3112.4,0.06079088]
[1738118910947,3.21282,3112.6,3112.4,0.06079088]
[1738118911154,3.22923696,3112.6,3112.4,0.06079088]
[1738118911452,3.98426696,3112.5,3112.4,0.06079088]
[1738118911950,3.21308,3112.3,3112.1,0.005]
[1738118912136,3.22949696,3112.3,3112.2,0.06080509]
[1738118912634,3.96785,3112.5,3112.2,0.06080509]
[1738118912635,3.21296,3112.4,3112.2,0.06080509]
[1738118912821,0.01641696,3112.3,3112.2,0.06080509]
[1738118913856,3.21295,3112.4,3112.2,0.06080509]
[1738118914418,3.70580557,3112.4,3112.2,0.06080509]
[1738118914845,3.21279,3112.6,3112.2,0.06080509]
[1738118915031,3.21272,3112.7,3112.3,0.618]
[1738118915247,3.21272,3112.7,3112.3,0.67885483]
[1738118916544,6.21259,3112.8,3112.3,0.67885483]
[1738118916754,3.21276,3112.6,3112.3,0.67885483]
[1738118917582,3.21295,3112.4,3112.3,0.06085483]
[1738118917729,3.21295,3112.4,3112.1,0.005]
[1738118917924,3.22950696,3112.3,3112.2,0.06077667]
[1738118918686,7.05670696,3112.3,3112.2,0.06077667]
[1738118918828,8.0672557,3112.3,3112.2,0.06077667]
[1738118919033,8.0672557,3112.3,3112.1,0.005]
[1738118919034,3.21316,3112.2,3112.1,0.005]
[1738118919335,6.21316,3112.2,3112.1,0.005]
[1738118919536,7.01526,3112.2,3112.1,0.005]
[1738118921710,3.21309,3112.3,3112.1,0.005]
[1738118921830,3.21293,3112.5,3112.1,0.68453006]
[1738118922026,3.21293,3112.5,3112.1,0.623]
[1738118922239,3.21297,3112.4,3112.2,0.06138788]
[1738118922628,3.0,3112.6,3112.2,0.06138788]
[1738118922827,3.21275,3112.6,3112.2,0.06138788]
[1738118923327,4.85841407,3112.7,3112.2,0.06138788]
[1738118923528,0.7925,3113.0,3112.2,0.06138788]
[1738118923529,3.21234,3113.0,3112.4,0.618]
[1738118923787,0.7612,3113.3,3112.5,3.8260396]
[1738118924061,3.21244,3112.9,3112.5,0.6110396]
[1738118924266,0.01641696,3112.8,3112.5,3.8260396]
[1738118924466,3.22885696,3112.9,3112.5,3.8260396]
[1738118924656,0.01641696,3112.9,3112.5,3.8260396]
[1738118924983,3.22888696,3112.9,3112.5,3.8260396]
[1738118925345,3.21264,3112.7,3112.5,0.0610396]
[1738118925655,3.22903696,3112.8,3112.2,0.55]
[1738118925854,3.21268,3112.7,3112.6,0.06079801]
[1738118926472,3.21268,3112.7,3112.2,3.765]
[1738118926656,3.21268,3112.7,3112.6,0.06079801]
[1738118926854,3.21268,3112.7,3112.2,3.765]
[1738118927056,3.21268,3112.7,3112.6,0.06079801]
[1738118927265,3.21268,3112.7,3112.2,3.765]
[1738118927467,3.21268,3112.7,3112.6,0.06079801]
[1738118927992,3.21268,3112.7,3112.2,3.765]
[1738118928144,3.22920696,3112.6,3112.2,3.765]
[1738118928338,3.21291,3112.5,3112.2,3.215]
[1738118928581,3.22941696,3112.4,3112.2,3.215]
[1738118928886,0.01641696,3112.4,3112.2,3.215]
[1738118930376,3.21269,3112.7,3112.2,3.537]
[1738118930574,3.21269,3112.7,3112.1,3.21825]
[1738118931269,6.44183696,3112.7,3112.1,0.005]
[1738118931474,6.42542,3112.7,3112.1,0.005]
[1738118932173,3.21269,3112.7,3112.1,3.21824]
[1738118932968,3.22910696,3112.7,3112.1,3.21824]
[1738118933178,6.44183696,3112.7,3112.1,3.21824]
[1738118933387,6.42542,3112.7,3112.1,3.21824]
[1738118933740,0.01641696,3112.6,3112.1,3.21824]
[1738118934057,3.21269,3112.7,3112.1,3.21824]
[1738118934460,3.22910696,3112.7,3112.1,3.21824]
[1738118934974,3.21262,3112.8,3112.1,3.21824]
[1738118935292,3.21282,3112.6,3112.1,0.005]
[1738118935441,0.01641696,3112.5,3112.1,3.22]
[1738118936164,3.21297,3112.4,3112.1,3.22]
[1738118936480,3.21291,3112.5,3112.1,0.005]
[1738118936874,3.21267,3112.7,3112.1,0.555]
[1738118937175,3.21267,3112.7,3112.1,3.76818]
[1738118938676,3.21267,3112.7,3112.2,3.21312]
[1738118938876,3.21267,3112.7,3112.3,0.618]
[1738118939273,3.21267,3112.7,3112.4,0.06058483]
[1738118939458,0.8029,3113.2,3112.5,0.55]
[1738118939645,3.21193,3113.4,3112.8,3.21245]
[1738118939839,3.22851696,3113.3,3112.7,6.97663]
[1738118940042,3.22851696,3113.3,3112.9,0.05931038]
[1738118940250,4.01478,3113.5,3112.7,6.97663]
[1738118940251,4.01478,3113.5,3112.7,3.764]
[1738118940461,4.01454,3113.7,3113.0,0.05930327]
[1738118940747,3.21173,3113.6,3113.1,0.05930327]
[1738118941859,3.22814696,3113.6,3113.1,0.05930327]
[1738118942866,3.21192,3113.4,3113.1,0.05930327]
[1738118943246,0.01641696,3113.3,3112.9,3.832]
[1738118943447,0.01641696,3113.3,3113.2,0.059147]
[1738118943670,3.21192,3113.4,3112.9,3.832]
[1738118943874,3.21192,3113.4,3113.2,0.059147]
[1738118944082,3.8559267,3113.4,3112.9,3.832]
[1738118944315,3.21192,3113.4,3113.3,0.059147]
[1738118944486,3.21192,3113.4,3112.9,3.214]
[1738118944487,3.2121,3113.3,3112.9,3.214]
[1738118944649,3.21233,3113.0,3112.2,0.618]
[1738118944980,3.21277,3112.6,3112.2,0.618]
[1738118945181,3.21277,3112.6,3112.2,3.833]
[1738118945579,4.04432,3113.2,3112.2,3.833]
[1738118945580,3.21244,3112.9,3112.2,3.833]
[1738118945782,3.21226,3113.1,3112.3,3.76295]
[1738118945986,3.21226,3113.1,3112.5,3.21284]
[1738118946376,3.21234,3113.0,3112.6,0.618]
[1738118947482,0.01641696,3112.9,3112.6,0.618]
[1738118947650,3.22887696,3112.9,3112.6,0.618]
[1738118948585,3.21246,3112.9,3112.6,0.618]
[1738118948749,3.22887696,3112.9,3112.6,0.618]
[1738118948958,3.21234,3113.0,3112.6,0.618]
[1738118950094,0.01641696,3112.9,3112.1,0.623]
[1738118950261,3.21302,3112.4,3112.1,0.623]
[1738118950461,3.21286,3112.5,3112.1,0.623]
[1738118951991,0.01641696,3112.4,3112.1,0.623]
[1738118952196,3.22938696,3112.4,3112.1,0.623]
[1738118952381,3.9795,3112.6,3112.1,0.623]
[1738118952582,3.21247,3112.9,3112.2,0.58213131]
[1738118952795,3.21226,3113.1,3112.4,0.55]
[1738118952968,3.21226,3113.1,3112.5,0.618]
[1738118953161,6.42459,3113.1,3112.5,3.83085]
[1738118953362,3.21226,3113.1,3112.5,3.83085]
[1738118954301,3.21207,3113.3,3112.7,3.21258]
[1738118954593,3.21207,3113.3,3112.8,0.05911145]
[1738118954775,3.21207,3113.3,3112.7,3.21258]
[1738118954971,3.21207,3113.3,3112.8,0.05911145]
[1738118955184,0.01641696,3113.2,3112.8,0.05911145]
[1738118955384,3.96723,3112.9,3112.2,3.83106]
[1738118955584,3.22898696,3112.8,3112.3,3.27403331]
[1738118955790,0.7548,3112.9,3112.4,0.55]
[1738118956182,3.22897696,3112.8,3112.5,0.05903331]
[1738118958407,0.77121696,3112.9,3112.5,0.05903331]
[1738118958568,3.2126,3112.8,3112.5,0.05903331]
[1738118958923,6.42523,3112.8,3112.3,0.65390364]
[1738118959070,6.42523,3112.8,3112.6,0.05903331]
[1738118959273,6.42523,3112.8,3112.3,0.65390364]
[1738118959468,6.42523,3112.8,3112.7,0.05903331]
[1738118959469,3.2126,3112.8,3112.7,0.05903331]
[1738118959668,3.2126,3112.8,3112.3,0.65390364]
[1738118959869,3.2126,3112.8,3112.7,0.05903331]
[1738118960069,3.2126,3112.8,3112.3,0.65390364]
[1738118960303,3.2126,3112.8,3112.7,0.05903331]
[1738118960504,3.2126,3112.8,3112.3,0.65390364]
[1738118960805,0.7548,3112.9,3112.3,0.65390364]
[1738118960806,3.21238,3113.0,3112.4,4.53288336]
[1738118960999,3.21238,3113.0,3112.5,0.05903331]
[1738118962917,3.21214,3113.2,3112.7,0.55]
[1738118963208,3.21214,3113.2,3112.8,0.05886281]
[1738118963407,3.21214,3113.2,3112.7,3.76263]
[1738118963585,3.21214,3113.2,3112.8,0.05886281]
[1738118963906,3.21214,3113.2,3112.7,3.76263]
[1738118964408,3.22855696,3113.2,3112.8,0.05886281]
[1738118964591,3.22855696,3113.2,3112.7,0.55]
[1738118964909,3.22855696,3113.2,3112.8,0.05886281]
[1738118965066,4.85841407,3113.3,3113.0,3.21233]
[1738118965403,3.21184,3113.5,3113.1,0.05886281]
[1738118965575,3.21184,3113.5,3112.9,3.76234]
[1738118965775,3.21184,3113.5,3113.0,0.05875627]
[1738118966128,0.01641696,3113.6,3113.1,1.168]
[1738118966275,3.21163,3113.7,3113.3,0.55]
[1738118966610,3.21163,3113.7,3113.4,0.05875627]
[1738118966821,3.98093,3113.9,3113.4,0.05875627]
[1738118966998,3.21122,3114.1,3113.6,0.55]
[1738118967179,3.21122,3114.1,3113.7,0.05844381]
[1738118967387,3.0,3114.0,3113.7,0.05844381]
[1738118967586,3.01641696,3114.0,3113.5,0.618]
[1738118967780,3.01641696,3114.0,3113.6,0.05844381]
[1738118969113,6.22778696,3114.0,3113.6,0.05844381]
[1738118971011,3.21141,3113.9,3113.6,0.05844381]
[1738118972714,3.0,3114.1,3113.6,0.05844381]
[1738118972920,6.21126,3114.1,3113.6,0.05844381]
[1738118973115,3.21133,3114.0,3113.6,0.05844381]
[1738118973334,8.06955407,3114.2,3113.6,0.44727019]
[1738118973486,8.06955407,3114.2,3113.7,0.618]
[1738118973904,3.21132,3114.0,3113.8,0.05737287]
[1738118974223,3.21132,3114.0,3113.7,0.618]
[1738118974397,3.21132,3114.0,3113.8,0.05659888]
[1738118974597,3.21132,3114.0,3113.7,0.618]
[1738118974798,3.21132,3114.0,3113.8,0.05659888]
[1738118975011,3.21132,3114.0,3113.7,0.618]
[1738118975208,3.21132,3114.0,3113.8,0.05659888]
[1738118975420,3.21132,3114.0,3113.7,0.618]
[1738118975622,3.21132,3114.0,3113.8,0.05659888]
[1738118975815,3.21132,3114.0,3113.7,1.27315068]
[1738118975997,3.21132,3114.0,3113.8,0.05659888]
[1738118976198,3.21132,3114.0,3113.7,1.27315068]
[1738118976418,3.21093,3114.4,3113.8,0.05659888]
[1738118976600,3.21106,3114.3,3113.8,6.48108888]
[1738118976986,3.21087,3114.5,3113.9,3.21132]
[1738118977186,3.21073,3114.6,3114.0,3.21128]
[1738118977393,3.21073,3114.6,3114.0,0.76934525]
[1738118977709,3.21052,3114.8,3114.3,0.618]
[1738118977909,3.21068,3114.7,3114.3,0.618]
[1738118978115,3.21052,3114.8,3114.4,0.05641431]
[1738118978316,3.21068,3114.6,3114.4,0.05641431]
[1738118979021,3.21058,3114.7,3114.4,0.05641431]
[1738118979621,3.21068,3114.6,3114.4,0.05641431]
[1738118980531,3.21059,3114.7,3114.4,0.05641431]
[1738118982110,3.21052,3114.8,3114.4,0.05641431]
[1738118982430,3.21028,3115.0,3114.4,3.29939137]
[1738118982732,3.21008,3115.2,3114.5,3.60251914]
[1738118982939,3.21008,3115.2,3114.6,0.618]
[1738118983131,3.21008,3115.2,3114.6,0.65010336]
[1738118983512,3.21022,3115.1,3114.7,0.05612332]
[1738118983912,3.21008,3115.2,3114.7,0.05612332]
[1738118984118,3.21028,3115.0,3114.7,0.05612332]
[1738118987041,6.42023,3115.2,3114.7,0.05612332]
[1738118987217,3.21008,3115.2,3114.7,0.05612332]
[1738118987416,3.21022,3115.1,3114.7,0.05612332]
[1738118989406,3.21022,3115.1,3114.7,0.80508457]
[1738118990531,3.21022,3115.1,3114.7,0.05612332]
[1738118991949,3.20999,3115.3,3114.7,3.26661332]
[1738118994142,3.2099,3115.4,3114.7,3.26661332]
[1738118994438,5.66821407,3115.5,3114.7,0.05612332]
[1738118994439,3.21023,3115.1,3114.7,0.05612332]
[1738119000650,3.21043,3114.9,3114.7,0.05612332]
[1738119000814,0.01641696,3114.8,3114.4,0.618]
[1738119001013,3.21059,3114.7,3114.5,0.05537816]
[1738119001919,3.21068,3114.6,3114.5,0.05537816]
[1738119002314,3.21068,3114.6,3114.2,3.213]
[1738119002743,0.7644,3115.0,3114.3,0.05528591]
[1738119002943,4.03849,3114.4,3114.3,0.05528591]
[1738119003315,3.21099,3114.3,3113.5,2.544]
[1738119003514,3.21168,3113.7,3113.5,2.544]
[1738119003714,3.21168,3113.7,3113.6,0.05360258]
[1738119004251,3.21144,3113.9,3113.6,0.05360258]
[1738119004486,3.21153,3113.8,3113.6,0.05360258]
[1738119005551,3.21144,3113.9,3113.6,0.05360258]
[1738119006070,3.21144,3113.9,3113.7,0.05418457]
[1738119006238,3.21144,3113.9,3113.3,3.212]
[1738119006439,6.42294,3113.9,3113.4,0.05418457]
[1738119007539,3.21144,3113.9,3113.4,0.05418457]
[1738119007939,3.21168,3113.7,3113.4,0.05418457]
[1738119008135,3.21168,3113.7,3113.2,4.48499669]
[1738119008478,4.01142696,3113.6,3112.9,0.618]
[1738119008652,3.21224,3113.1,3112.9,0.618]
[1738119008971,4.85841407,3113.7,3112.9,0.618]
[1738119009176,8.07009407,3113.7,3113.0,3.21223]
[1738119009879,8.07009407,3113.7,3113.1,3.21218]
[1738119010263,4.85841407,3113.7,3113.2,3.21208]
[1738119010478,4.85841407,3113.7,3113.3,0.618]
[1738119010973,4.85841407,3113.7,3112.9,3.83035]
[1738119010974,3.21188,3113.5,3112.9,3.83035]
[1738119011182,3.21188,3113.5,3112.9,3.86247079]
[1738119011865,3.21188,3113.5,3112.9,0.65012079]
[1738119012066,3.21188,3113.5,3113.0,3.21231]
[1738119012679,8.07003407,3113.7,3113.0,3.21231]
[1738119012866,3.0,3113.8,3113.1,3.79612078]
[1738119013075,3.0,3113.8,3113.2,3.83005]
[1738119013446,3.0,3113.8,3113.3,3.21194]
[1738119013652,0.01641696,3113.8,3113.2,0.618]
[1738119013967,3.21169,3113.7,3113.2,0.618]
[1738119014178,3.21169,3113.7,3113.3,0.05518534]
[1738119014544,3.21169,3113.7,3113.2,7.04412]
[1738119014748,3.21169,3113.7,3113.4,0.05518534]
[1738119014972,3.21169,3113.7,3113.2,7.04412]
[1738119015171,0.01641696,3113.8,3113.5,0.05518534]
[1738119015384,0.01641696,3113.8,3113.2,3.83012]
[1738119015700,3.22795696,3113.8,3113.6,0.05518534]
[1738119015883,3.22795696,3113.8,3113.3,0.05518534]
[1738119016187,3.22795696,3113.8,3113.2,3.83012]
[1738119016384,3.22795696,3113.8,3113.4,0.05518534]
[1738119016550,3.22795696,3113.8,3113.2,3.83012]
[1738119016750,3.22795696,3113.8,3113.5,0.05518534]
[1738119016951,3.22795696,3113.8,3113.2,3.83012]
[1738119017184,3.21154,3113.8,3113.6,0.05518534]
[1738119017381,3.21154,3113.8,3113.2,3.83012]
[1738119017553,3.22795696,3113.8,3113.7,0.05518534]
[1738119017873,3.21173,3113.6,3113.2,0.618]
[1738119018070,3.2123,3113.1,3112.7,0.618]
[1738119018249,3.21222,3113.2,3112.7,0.618]
[1738119018453,3.21222,3113.2,3112.7,4.45745025]
[1738119018785,0.7564,3113.5,3112.9,3.21243]
[1738119019365,3.96828,3113.5,3112.9,3.21243]
[1738119020014,8.07013407,3113.6,3112.9,3.21243]
[1738119020377,4.85841407,3113.6,3113.1,3.76214]
[1738119020576,4.85841407,3113.6,3113.1,4.8460061]
[1738119021671,3.21162,3113.7,3113.1,4.8460061]
[1738119022912,3.21192,3113.4,3112.8,4.27621503]
[1738119023073,6.42356,3113.6,3112.9,3.24452098]
[1738119023278,3.21186,3113.5,3112.9,3.24452098]
[1738119023808,3.21194,3113.4,3112.9,3.24452098]
[1738119024012,4.02828,3114.0,3113.4,3.21182]
[1738119024219,0.83331696,3113.9,3113.0,0.4308266]
[1738119024511,3.21178,3113.6,3113.0,3.21226]
[1738119024691,3.21161,3113.7,3113.0,3.21226]
[1738119024890,6.42332,3113.7,3113.0,3.21226]
[1738119025118,6.42332,3113.7,3113.1,0.03211899]
[1738119025327,6.42332,3113.7,3113.0,3.21226]
[1738119025485,3.21172,3113.6,3113.1,0.3794379]
[1738119026282,6.42352,3113.6,3113.1,0.3794379]
[1738119026682,3.21183,3113.5,3113.1,0.3794379]
[1738119027533,3.21172,3113.6,3113.1,0.3794379]
[1738119029251,3.21172,3113.6,3113.2,0.05553328]
[1738119029713,3.21172,3113.6,3113.0,3.21226]
[1738119030043,3.21172,3113.6,3113.3,0.05553328]
[1738119030245,3.21172,3113.6,3113.0,3.21226]
[1738119030411,3.21172,3113.6,3113.4,0.05555458]
[1738119030611,3.21172,3113.6,3113.0,3.21226]
[1738119030850,3.21172,3113.6,3113.5,0.05555458]
[1738119031011,3.21172,3113.6,3113.0,6.42625]
[1738119031214,3.21172,3113.6,3113.5,0.05555458]
[1738119031415,3.21172,3113.6,3113.0,6.42625]
[1738119031629,3.21172,3113.6,3113.5,0.05555458]
[1738119031821,3.21172,3113.6,3113.0,6.42625]